Cogmind - Beta 11.1 @@@ ROGUE MODE // 2022.06.25 @ 09:16:37 Player: Demise Result: Destroyed by as-19339 with Assembled Blade Performance ------------- Evolutions (0) 0 Regions Visited (2) 400 Robots Destroyed (27) 135 Value Destroyed (511) 511 Prototype IDs (2) 40 Alien Tech Used (0) 0 Bonus (0) 0 TOTAL SCORE: 1086 Bonus ------- None Cogmind --------- Core Integrity 0/250 Matter 300/300 Energy 100/100 System Corruption 0% Temperature Cool (0) Movement Walking (190) Ox1 Location -10/Mines Parts ------- > --- POWER (1) -------- (None) > --- PROPULSION (2) --- Improved Aluminum Leg Improved Aluminum Leg > --- UTILITY (2) ------ High-capacity Storage Unit Seismic Detector > --- WEAPON (2) ------- EM Pulse Gun Light Assault Rifle > --- INVENTORY (20) --- Improved Aluminum Leg Improved Aluminum Leg Wheel Improved Heat Sink Visual Processing Unit Core Shielding Hacking Suite Beam Rifle Beam Rifle Beam Rifle Beam Rifle Particle Gun Particle Gun Particle Gun Particle Gun Grenade Launcher Peak State ------------ > --- POWER ------------ Light Nuclear Core > --- PROPULSION ------- Wheel Wheel > --- UTILITY ---------- High-capacity Storage Unit Targeting Computer > --- WEAPON ----------- Light Assault Rifle Light Assault Rifle > --- INVENTORY -------- Improved Aluminum Leg Improved Aluminum Leg Improved Aluminum Leg Improved Aluminum Leg Improved Heat Sink Seismic Detector Core Shielding EM Pulse Gun Beam Rifle Beam Rifle Beam Rifle Beam Rifle Particle Gun Particle Gun Particle Gun Particle Gun Light Assault Rifle [Rating: 12] Favorites ----------- Power Light Nuclear Core Engine Ion Engine Power Core Light Nuclear Core Propulsion Wheel Leg Improved Aluminum Leg Wheel Wheel Utility High-capacity Storage Unit Device Seismic Detector Storage High-capacity Storage Unit Processor Targeting Computer Protection Core Shielding Weapon Light Assault Rifle Energy Gun EM Pulse Gun Ballistic Gun Light Assault Rifle Build | -11 -10 -10 ------- Run | Scr Mat Min Slots Evolved . | . . . Power . | . . . Propulsion . | . . . Utility . | . . . Weapon . | . . . Parts Attached 25 | 6 19 . Power 2 | . 2 . Engine 1 | . 1 . Core 1 | . 1 . Reactor . | . . . Propulsion 8 | 2 6 . Treads . | . . . Leg 2 | . 2 . Wheel 6 | 2 4 . Hover . | . . . Flight . | . . . Utility 8 | 1 7 . Device 2 | . 2 . Storage 3 | 1 2 . Processor 2 | . 2 . Hackware . | . . . Protection 1 | . 1 . Artifact . | . . . Weapon 7 | 3 4 . Energy Gun 3 | 2 1 . Energy Cannon . | . . . Ballistic Gun 4 | 1 3 . Ballistic Cannon . | . . . Launcher . | . . . Special Weapon . | . . . Impact Weapon . | . . . Slashing Weapon . | . . . Piercing Weapon . | . . . Special Melee Weapon . | . . . Unidentified Prototypes . | . . . Parts Lost 10 | . 10 . Power 2 | . 2 . Propulsion 5 | . 5 . Utility . | . . . Weapon 3 | . 3 . Highest Loss Streak 5 | . 5 . To Critical Strikes . | . . . Average Slot Usage (%) 90 | . 90 85 Engine 2 | . 2 . Core 4 | . 4 . Leg 12 | . 9 28 Wheel 15 | . 17 . Device 6 | . 5 14 Storage 14 | . 14 14 Processor 4 | . 5 . Protection 2 | . 2 . Energy Gun 6 | . 4 14 Ballistic Gun 21 | . 23 14 Naked Turns . | . . . Heaviest Build 47 | 8 47 44 Greatest Support 26 | 3 26 26 Greatest Overweight (x) 2 | 2 2 1 Average Overweight (x) 1 | . 1 1 Largest Inventory Capacity 20 | 8 20 20 Average Capacity 16 | 5 17 20 Most Carried 20 | 6 20 16 Average Carried 11 | 4 12 16 Final Capacity 20 | 8 20 20 Final Carried 16 | 6 16 16 Class Distribution -------------------- 100% | Mutant Dominant Class ---------------- Mutant | -10/Materials Mutant | -10/Mines Resources | -11 -10 -10 ----------- Run | Scr Mat Min Matter Collected 553 | 274 279 . Remotely . | . . . Salvage Created 772 | 166 606 . Parts 58 | 20 38 . Haulers Intercepted 1 | . 1 . Recyclers Shooed 3 | 2 1 . Parts Field Recycled . | . . . Retrieved Matter . | . . . Parts Self-Destructed . | . . . Prevented . | . . . Kills | -11 -10 -10 ------- Run | Scr Mat Min Combat Hostiles Destroyed 13 | . 13 . Guns 13 | . 13 . Classes Destroyed 8 | 3 5 . Worker 4 | 2 2 . Tunneler 5 | 5 . . Hauler 1 | . 1 . Recycler 1 | 1 . . Operator 1 | . 1 . Watcher 2 | . 2 . Swarmer 3 | . 3 . Grunt 10 | . 10 . Best Kill Streak 6 | 6 4 . Combat Bots Only 4 | . 4 . Max Kills in Single Turn 2 | 1 2 . Gunslinging 1 | . 1 . Exploded . | . . . Melee . | . . . Uniques/NPCs Destroyed . | . . . Combat | -11 -10 -10 -------- Run | Scr Mat Min Damage Taken 966 | . 932 34 Core 280 | . 246 34 Absorbed by Shields . | . . . Redirected to Shielding 33 | . 33 . Regen/Repaired (Parts) 33 | . 33 . Core Remaining (%) 100 | 100 . . Volleys Fired 92 | 16 76 . Largest 2 | 2 2 . Hottest 70 | 70 60 . Shots Fired 183 | 32 151 . Gun 183 | 32 151 . Cannon . | . . . Launcher . | . . . Special . | . . . Kinetic 153 | 16 137 . Thermal 13 | 13 . . Explosive . | . . . Electromagnetic 17 | 3 14 . Robot Hit Streak 17 | 17 7 . Robot Miss Streak 4 | 1 4 . Penetration Max . | . . . Secondary Targets 2 | . 2 . Max Gunslinging Chain 1 | . 1 . Shots Hit Robots 115 | 22 93 . Core Hits 50 | 11 39 . Critical Kills 1 | . 1 . Critical Parts Destroyed 1 | 1 . . Critical Strikes 4 | 3 1 . Burn 2 | 2 . . Destroy 2 | 1 1 . Melee Attacks . | . . . Impact . | . . . Slashing . | . . . Piercing . | . . . Sneak Attacks . | . . . Combat Hostiles . | . . . Follow-up Attacks . | . . . Damage Inflicted 1160 | 236 924 . Guns 1034 | 236 798 . Cannons . | . . . Explosions 126 | . 126 . Melee . | . . . Ramming . | . . . Kinetic 755 | 73 682 . Thermal 139 | 139 . . Explosive 126 | . 126 . Electromagnetic 140 | 24 116 . Impact . | . . . Slashing . | . . . Piercing . | . . . Highest Corruption . | . . . Average Corruption . | . . . Corruption Purged . | . . . Corruption Blocked . | . . . Overload Shots . | . . . Overflow Damage 7 | . 7 . Projectiles . | . . . Explosions 7 | . 7 . Melee . | . . . Knockbacks . | . . . Impact . | . . . Kinetic . | . . . Secondary . | . . . Self-Inflicted Damage . | . . . Shots . | . . . Rammed . | . . . Targets Rammed . | . . . Kicked . | . . . Crushed . | . . . Highest Temperature 40 | 40 32 . Average Temperature 10 | 16 7 . Received Heat Transfer 474 | . 474 . Siege Activations . | . . . Robots Corrupted . | . . . Combat Hostiles . | . . . Parts Fried . | . . . Impact Corruptions . | . . . Robots Melted . | . . . Combat Hostiles . | . . . Parts Melted 1 | 1 . . Heat Transferred 555 | 555 . . Parts Sabotaged . | . . . Parts Stolen . | . . . Parts Stripped . | . . . Power Chain Reactions . | . . . Missiles Intercepted . | . . . Alert | -11 -10 -10 ------- Run | Scr Mat Min Peak Influence 360 | 40 360 106 Initial 91 | . 26 91 Average 197 | 19 237 91 Maximum Alert Level 1 | . 1 . Low Security (%) 50 | 100 35 100 Level 1 49 | . 64 . Level 2 . | . . . Level 3 . | . . . Level 4 . | . . . Level 5 . | . . . High Security . | . . . Max Security . | . . . Squads Dispatched 4 | . 4 . Investigation 2 | . 2 . Extermination . | . . . Reinforcement 2 | . 2 . Assault . | . . . Garrison . | . . . Intercept . | . . . Searches Triggered . | . . . Construction Impeded . | . . . Haulers Reinforced . | . . . Active Scanning Responses . | . . . Cargo Convoy Interrupts . | . . . Stealth | -11 -10 -10 --------- Run | Scr Mat Min Distress Signals 2 | . 2 . Communications Jammed . | . . . Distress Signals . | . . . Times Spotted 23 | . 21 2 Peak Tracking Total 5 | . 5 2 Tactical Retreats . | . . . Traps | -11 -10 -10 ------- Run | Scr Mat Min Traps Triggered . | . . . Indirectly . | . . . Trap Hack Attempts . | . . . Triggered . | . . . Disarmed . | . . . Reprogrammed . | . . . Reused . | . . . Traps Extracted . | . . . Installed . | . . . Triggered . | . . . Machines | -11 -10 -10 ---------- Run | Scr Mat Min Machines Disabled 2 | . 2 . Max in Single Turn 2 | . 2 . Machines Sabotaged . | . . . Garrisons Compromised . | . . . Overloaded Fab Kills . | . . . Hacking | -11 -10 -10 --------- Run | Scr Mat Min Machines Accessed 9 | . 9 . Terminals 6 | . 6 . Fabricators . | . . . Repair Stations 1 | . 1 . Recycling Units 2 | . 2 . Scanalyzers . | . . . Garrison Access . | . . . Total Hacks 41 | . 41 . Successful 25 | . 25 . Failed 15 | . 15 . Catastrophic . | . . . Database Lockouts 1 | . 1 . Manual 28 | . 28 . Terminals 34 | . 34 . Fabricators . | . . . Repair Stations 2 | . 2 . Recycling Units 5 | . 5 . Scanalyzers . | . . . Garrison Access . | . . . Terminal Hacks 10 | . 10 . Robot Analysis 3 | . 3 . Prototype ID Bank 1 | . 1 . Level Access Points 1 | . 1 . Branch Access Points 1 | . 1 . Emergency Access Points 1 | . 1 . Terminal Index 1 | . 1 . Locate Traps 1 | . 1 . Hauler Manifests 1 | . 1 . Fabricator Hacks . | . . . Repair Station Hacks 2 | . 2 . Scan Component 1 | . 1 . Repair 1 | . 1 . Recycling Unit Hacks 2 | . 2 . Retrieve Components 2 | . 2 . Scanalyzer . | . . . Garrison Access Hacks . | . . . Unauthorized Hacks 11 | . 11 . Terminals 9 | . 9 . Assimilate 1 | . 1 . Botnet 5 | . 5 . Detonate 2 | . 2 . Operators 1 | . 1 . Fabricators . | . . . Repair Stations . | . . . Recycling Units 2 | . 2 . Tunnel 2 | . 2 . Scanalyzers . | . . . Garrison Access . | . . . Data Cores Recovered . | . . . Used . | . . . Hacking Detections 5 | . 5 . Full Trace Events 3 | . 3 . Feedback Events . | . . . Feedback Blocked . | . . . Robot Schematics Acquired . | . . . Robots Built . | . . . Authchips . | . . . Time . | . . . Total Robot Build Rating . | . . . Part Schematics Acquired . | . . . Parts Built . | . . . Authchips . | . . . Time . | . . . Total Part Build Rating . | . . . Parts Repaired 1 | . 1 . Time 26 | . 26 . Parts Recycled . | . . . Recycled Matter . | . . . Retrieved Matter . | . . . Retrieved Components 2 | . 2 . Parts Scanalyzed . | . . . Part Schematics Acquired . | . . . Parts Damaged . | . . . Bothacking | -11 -10 -10 ------------ Run | Scr Mat Min Used RIF Installer . | . . . Robots Hacked . | . . . Non-combat . | . . . Combat . | . . . Robot Hacks Applied . | . . . Relay Couplers Released . | . . . Fabnet Peak Effective % . | . . . Robots Rewired . | . . . Allies Hacked . | . . . Hacks Repelled . | . . . Allies | -11 -10 -10 -------- Run | Scr Mat Min Total Allies 1 | . 1 . Largest Group 1 | . 1 1 Highest-Rated Group 10 | . 10 10 Highest-Rated Ally 10 | . 10 10 Total Orders 1 | . . 1 STAY 1 | . . 1 Ally Attacks . | . . . Total Damage . | . . . Kills . | . . . Allies Corrupted . | . . . Allies Melted . | . . . Intel | -11 -10 -10 ------- Run | Scr Mat Min Robot Analysis Total 3 | . 3 . Derelict Logs Recovered . | . . . Drone Launches . | . . . Drone Recoveries . | . . . Exploration | -11 -10 -10 ------------- Run | Scr Mat Min Turns Passed 1312 | 119 1016 177 Spaces Moved 737 | 79 593 65 Core 79 | 79 . . Treads . | . . . Legs 207 | . 142 65 Wheels 451 | . 451 . Hover . | . . . Flight . | . . . Fastest Speed 50 | 50 80 190 Average Speed 120 | 57 121 190 Slowest Speed 190 | 150 190 190 Overloaded Moves . | . . . Propulsion Burnouts . | . . . Robots Hopped . | . . . Cave-ins Triggered . | . . . Exploration Rate (%) 36 | 3 96 9 Regions Visited 2 Branch Regions 1 Pre-discovered Areas 2 | . 2 . Known Exits Taken 1 | . 1 . Unknown Exits Taken 1 | 1 . . Scrap Searched . | . . . Spaces Dug . | . . . Terrain Destroyed 34 | . 34 . Melee . | . . . Projectile . | . . . AOE 34 | . 34 . Terrain Rammed . | . . . Walls Destroyed . | . . . Machines Disabled . | . . . Actions | -11 -10 -10 --------- Run | Scr Mat Min Total 1010 | 124 767 119 Wait 110 | 9 47 54 Move 735 | 78 592 65 Hop . | . . . Pick Up 37 | 12 25 . Fast Attach 3 | 2 1 . Attach 16 | 3 13 . Detach 3 | . 3 . Swap 6 | 1 5 . Drop 8 | 3 5 . Fire 92 | 16 76 . Melee . | . . . Ram . | . . . Kick . | . . . Crush . | . . . Escape Stasis . | . . . Rewire . | . . . Trap . | . . . Miscellaneous . | . . . Route ------- -11/Scrapyard -10/Materials (discovered 4 exits: *Mat x3 / *Min) -10/Mines History --------- Turn | Location | Event 13 | -11/Scrapyard | Discovered new exit (range 16) 120 | -11/Scrapyard | Entered Materials 286 | -10/Materials | Central database locked down 313 | -10/Materials | Build established: Mutant 350 | -10/Materials | Discovered new exit (range 15) 364 | -10/Materials | Lost 3 parts (1p2n) 423 | -10/Materials | Core integrity fell below 50% 440 | -10/Materials | Identified exit to Materials 483 | -10/Materials | Identified exit to Mines 796 | -10/Materials | Core integrity fell below 20% 831 | -10/Materials | Lost 5 parts (1p2n2w) 854 | -10/Materials | Repaired Core Shielding 1136 | -10/Materials | Entered Mines 1136 | -10/Mines | Accompanied by 1 ally 1192 | -10/Mines | Assembled infested the area 1197 | -10/Mines | Assisted by a Guerilla fighting off Assembled 1313 | -10/Mines | Destroyed by as-19339 with Assembled Blade Last Messages --------------- 01060_ K-01 Serf collects debris. 01064_ Technician 1a reveals location of hidden door. 01067_ K-01 Serf collects debris. 01073_ T-07 Excavator is excavating. 01073_ K-01 Serf collects debris. 01096_ Acquired 6 matter. 01113_ K-01 Serf collects debris. LOCATION=MINES GOAL=ESCAPE 01137_ Technician 1a reports 0b10 security level has lowered to 0. 01186_ K-01 Serf collects debris. 01189_ K-01 Serf cleans the Laser Drill. 01190_ K-01 Serf collects debris. 01192_ ALERT: Infestation in the mines, dispatching Demolisher response squad. 01193_ K-01 Serf collects debris. 01197_ A derelict emerges from the shadows: "You need to get out of here! I've been tracking a group of Assembled to figure out where they're coming from, and they're closing on this area, come on!" 01198_ K-01 Serf collects debris. 01221_ K-01 Serf cleans the Seismic Survey Station. Map ----- +----------------------------------------------------+ | | | | | | | | | | | | | | | | | | | | | | | | | | | ?????????????????????????????????????????????????? | | ?????????????????????????????????????????????????? | | ?????????????????????????????????????????????????? | | ?????????????????????????????????????????????????? | | ?????????????????????????????????????????????????? | | ?????????????????????????????????????????????????? | | ??????????##?????????????????????????????????????? | | ?????????## ????????????????????????????????????? | | ?????????# ???????????????????????????????????? | | ?????????# #?########?????????????????????????? | | ?????????# ## #####?????????????????????? | | ??????????# #?????????????????????? | | ??????????## """ #@ #?????????????????????? | | ???????????# """ ## ##a #?????????????????????? | | ???????????# """ ####### #?????????????????????? | | ???????????## ##????# ###???????????????????? | | ????????????### #????# a ##??????????????????? | | ??????????????### #???# ##?????????????????? | | ????????????????#####???#=""" #?????????????????? | | ???????????????????????# %""" #????????????????? | | ???????????????????????# !""" #???????????????? | | ???????????????????????## ??????????????? | | ????????????????????????### ####?????????????? | | ??????????????????????????## ###????????????????? | | ???????????????????????????## #??????????????????? | | ????????????????????????????# #??????????????????? | | ????????????????????????????# #??????????????????? | | ????????????????????????????? ???????????????????? | | ????????????????????????????? ???????????????????? | | ????????????????????????????? ???????????????????? | | ????????????????????????????? ???????????????????? | | ????????????????????????????? ???????????????????? | | ????????????????????????????? ???????????????????? | | ????????????????????????????? ???????????????????? | | ?????????????????????????????????????????????????? | | ?????????????????????????????????????????????????? | | ?????????????????????????????????????????????????? | +----------------------------------------------------+ Best States ------------- Heat Dissipation 25 Energy Generation 14 Energy Capacity 250 Matter Stores 300 Matter Capacity 300 Sight Range 16 Terrain Scan Density 10 Core Shielding 20 Evasion (%) 50 Targeting Accuracy 5 Item Schematics ----------------- None Robot Schematics ------------------ None Fabricated ------------ Nothing Alien Tech Used ----------------- None Achievements -------------- None Challenges ------------ None Game ------ Seed MatterVisualAccelerator Manual? 0 Play Time 00:10:59 Cumulative 645.2 hours Start 2022.06.25 @ 09:06:13 End 2022.06.25 @ 09:16:37 Sessions 1 Manual Loads 0 Difficulty Rogue Special Mode None Game No. 526 Rogue 526 Adventurer 0 Explorer 0 Win Type - Total 8 Types 7/0/0/1/0/0/0/0/0 Lore% 75 Gallery% 86 Achievement% 69 Wizard Run 0 Options --------- ASCII 0 Keyboard 1 Movement Numpad Keybinds 0 Fullscreen 1 Font 12/Terminus Map View 83x54 Tactical HUD 1 Map Filters NONE Filters NONE Steam 1 RUN: eef093f2-18e5-4301-84ff-74fa56d6f64d